[Event "Early-Titled-Tuesday-Blitz-October-24-2023"]
[Site "Chess.com"]
[Date "2023.10.24"]
[Round "1"]
[White "BJthechessgod"]
[Black "Szparu"]
[Result "0-1"]
[WhiteElo "2376"]
[BlackElo "2698"]
[TimeControl "180+1"]
[EndTime "8:06:19 PDT"]
[Termination "Szparu won by checkmate"]

1. e4 {[%clk 0:02:56.5]} 1... c5 {[%clk 0:02:59]} 2. Nf3 {[%clk 0:02:55.9]} 2...
d6 {[%clk 0:02:58.1]} 3. d4 {[%clk 0:02:56.3]} 3... cxd4 {[%clk 0:02:57.2]} 4.
Nxd4 {[%clk 0:02:57.2]} 4... Nf6 {[%clk 0:02:57.2]} 5. Nc3 {[%clk 0:02:57.9]}
5... Nc6 {[%clk 0:02:55.3]} 6. Bg5 {[%clk 0:02:56.9]} 6... Bd7 {[%clk
0:02:50.7]} 7. Qd2 {[%clk 0:02:55.5]} 7... a6 {[%clk 0:02:44.2]} 8. O-O-O {[%clk
0:02:54.9]} 8... e6 {[%clk 0:02:44.6]} 9. f4 {[%clk 0:02:54.4]} 9... Be7 {[%clk
0:02:39.1]} 10. Nf3 {[%clk 0:02:51.9]} 10... b5 {[%clk 0:02:36.2]} 11. e5 {[%clk
0:02:31.8]} 11... b4 {[%clk 0:02:35.8]} 12. exf6 {[%clk 0:02:32.4]} 12... bxc3
{[%clk 0:02:35.9]} 13. Qxc3 {[%clk 0:02:32.2]} 13... gxf6 {[%clk 0:02:36]} 14.
Bh4 {[%clk 0:02:33.1]} 14... Rg8 {[%clk 0:02:29]} 15. Bd3 {[%clk 0:02:27.2]}
15... Rc8 {[%clk 0:02:24.8]} 16. Bxa6 {[%clk 0:02:11.4]} 16... Rc7 {[%clk
0:02:05.6]} 17. Qd2 {[%clk 0:02:04.9]} 17... d5 {[%clk 0:01:27]} 18. Bd3 {[%clk
0:02:01.3]} 18... Qa8 {[%clk 0:01:21.1]} 19. Kb1 {[%clk 0:02:00.4]} 19... Ra7
{[%clk 0:01:20.6]} 20. a3 {[%clk 0:01:52.6]} 20... Rb7 {[%clk 0:00:46.3]} 21.
Qc3 {[%clk 0:01:26.8]} 21... Bxa3 {[%clk 0:00:38.4]} 22. b3 {[%clk 0:01:27.1]}
22... Bb4 {[%clk 0:00:22.1]} 23. Qxf6 {[%clk 0:01:24.6]} 23... Qa5 {[%clk
0:00:20.7]} 24. Ne5 {[%clk 0:01:14.3]} 24... Nxe5 {[%clk 0:00:15.7]} 25. fxe5
{[%clk 0:01:15.2]} 25... Ra7 {[%clk 0:00:15.3]} 26. c3 {[%clk 0:00:33.9]} 26...
Qa1+ {[%clk 0:00:14.6]} 27. Kc2 {[%clk 0:00:34]} 27... Ra2# {[%clk 0:00:15.3]}
0-1

[Event "Early-Titled-Tuesday-Blitz-October-24-2023"]
[Site "Chess.com"]
[Date "2023.10.24"]
[Round "1"]
[White "Emp3rador"]
[Black "MikeSailer"]
[Result "1-0"]
[WhiteElo "2534"]
[BlackElo "2043"]
[TimeControl "180+1"]
[EndTime "8:06:20 PDT"]
[Termination "Emp3rador won on time"]

1. e4 {[%clk 0:03:00.9]} 1... d5 {[%clk 0:02:58.1]} 2. exd5 {[%clk 0:03:00.6]}
2... Qxd5 {[%clk 0:02:57.9]} 3. Nc3 {[%clk 0:03:01.1]} 3... Qd6 {[%clk
0:02:58.1]} 4. d4 {[%clk 0:03:01.7]} 4... c6 {[%clk 0:02:58.2]} 5. Nf3 {[%clk
0:03:02]} 5... Bg4 {[%clk 0:02:57.8]} 6. h3 {[%clk 0:02:59.3]} 6... Bh5 {[%clk
0:02:47]} 7. g4 {[%clk 0:02:58.3]} 7... Bg6 {[%clk 0:02:46.9]} 8. Ne5 {[%clk
0:02:58.8]} 8... Nd7 {[%clk 0:02:42.2]} 9. Bf4 {[%clk 0:02:55.4]} 9... Nxe5
{[%clk 0:02:40]} 10. Bxe5 {[%clk 0:02:55.8]} 10... Qb4 {[%clk 0:02:39.7]} 11.
Rb1 {[%clk 0:02:53.8]} 11... e6 {[%clk 0:02:33.8]} 12. Bg2 {[%clk 0:02:44.2]}
12... Nf6 {[%clk 0:02:19.5]} 13. O-O {[%clk 0:02:43.1]} 13... Be7 {[%clk
0:02:07.9]} 14. f4 {[%clk 0:02:13.1]} 14... h6 {[%clk 0:01:28]} 15. f5 {[%clk
0:01:53.8]} 15... exf5 {[%clk 0:01:25.8]} 16. gxf5 {[%clk 0:01:54.7]} 16... Bh5
{[%clk 0:01:17.3]} 17. Qe1 {[%clk 0:01:53.7]} 17... O-O-O {[%clk 0:01:00.8]} 18.
Qh4 {[%clk 0:01:33]} 18... g5 {[%clk 0:00:24.7]} 19. fxg6 {[%clk 0:01:31.2]}
19... fxg6 {[%clk 0:00:12.6]} 20. Bxf6 {[%clk 0:01:30.7]} 20... Bxf6 {[%clk
0:00:12.1]} 21. Qxf6 {[%clk 0:01:31.5]} 21... Kb8 {[%clk 0:00:11.9]} 22. Qe5+
{[%clk 0:01:26.1]} 22... Ka8 {[%clk 0:00:11.5]} 23. Qc5 {[%clk 0:01:26.3]} 23...
Qxd4+ {[%clk 0:00:05.3]} 24. Qxd4 {[%clk 0:01:26.1]} 24... Rxd4 {[%clk
0:00:05.6]} 25. Rbe1 {[%clk 0:01:26.2]} 25... a6 {[%clk 0:00:05]} 26. Ne4 {[%clk
0:01:22.6]} 26... Rhd8 {[%clk 0:00:03.8]} 27. c3 {[%clk 0:01:22.5]} 27... Rd3
{[%clk 0:00:03.8]} 28. Nf6 {[%clk 0:01:21.2]} 28... Bd1 {[%clk 0:00:01.9]} 29.
Be4 {[%clk 0:01:09.5]} 29... Rd2 {[%clk 0:00:01.8]} 30. Bxg6 {[%clk 0:01:07.5]}
30... Rxb2 {[%clk 0:00:01.8]} 31. Rxd1 {[%clk 0:01:06.8]} 1-0

[Event "Early-Titled-Tuesday-Blitz-October-24-2023"]
[Site "Chess.com"]
[Date "2023.10.24"]
[Round "1"]
[White "WhiteKnight2612"]
[Black "WindWhistler11"]
[Result "1-0"]
[WhiteElo "2818"]
[BlackElo "2449"]
[TimeControl "180+1"]
[EndTime "8:06:21 PDT"]
[Termination "WhiteKnight2612 won on time"]

1. e4 {[%clk 0:03:00.9]} 1... e6 {[%clk 0:02:52.7]} 2. d3 {[%clk 0:02:59.5]}
2... d5 {[%clk 0:02:48.4]} 3. Nd2 {[%clk 0:02:59.9]} 3... Nf6 {[%clk 0:02:48.5]}
4. g3 {[%clk 0:02:58.9]} 4... c5 {[%clk 0:02:47.5]} 5. Bg2 {[%clk 0:02:59.3]}
5... g6 {[%clk 0:02:46.9]} 6. e5 {[%clk 0:02:54.3]} 6... Nfd7 {[%clk 0:02:46.6]}
7. f4 {[%clk 0:02:55]} 7... Nc6 {[%clk 0:02:45.8]} 8. Ngf3 {[%clk 0:02:55.5]}
8... Bg7 {[%clk 0:02:44.9]} 9. O-O {[%clk 0:02:55.9]} 9... O-O {[%clk
0:02:36.3]} 10. c3 {[%clk 0:02:55.7]} 10... b6 {[%clk 0:02:36.2]} 11. d4 {[%clk
0:02:54.7]} 11... a5 {[%clk 0:02:35.4]} 12. g4 {[%clk 0:02:49.7]} 12... Ba6
{[%clk 0:02:33.1]} 13. Rf2 {[%clk 0:02:49.5]} 13... cxd4 {[%clk 0:02:32.5]} 14.
Nxd4 {[%clk 0:02:49]} 14... Nxd4 {[%clk 0:02:22.4]} 15. cxd4 {[%clk 0:02:48.5]}
15... Bd3 {[%clk 0:02:19.5]} 16. Qb3 {[%clk 0:02:42.9]} 16... Ba6 {[%clk
0:02:13]} 17. f5 {[%clk 0:02:42.9]} 17... Rc8 {[%clk 0:01:51]} 18. Nf3 {[%clk
0:02:37.8]} 18... Bc4 {[%clk 0:01:46.9]} 19. Qd1 {[%clk 0:02:33.3]} 19... exf5
{[%clk 0:01:31.8]} 20. gxf5 {[%clk 0:02:32.8]} 20... Re8 {[%clk 0:01:17.6]} 21.
Ng5 {[%clk 0:02:25.1]} 21... f6 {[%clk 0:01:07.8]} 22. Ne6 {[%clk 0:02:24.7]}
22... Qe7 {[%clk 0:01:01.2]} 23. Nxg7 {[%clk 0:02:24.1]} 23... Qxg7 {[%clk
0:01:00.2]} 24. b3 {[%clk 0:02:20.4]} 24... Bb5 {[%clk 0:00:53.4]} 25. Bxd5+
{[%clk 0:02:18]} 25... Kh8 {[%clk 0:00:52.3]} 26. e6 {[%clk 0:02:07.4]} 26...
Nf8 {[%clk 0:00:40.4]} 27. Bf4 {[%clk 0:02:04.1]} 27... gxf5+ {[%clk 0:00:37.8]}
28. Rg2 {[%clk 0:02:03.9]} 28... Ng6 {[%clk 0:00:38.2]} 29. Qd2 {[%clk 0:01:54]}
29... Rcd8 {[%clk 0:00:37]} 30. Bf3 {[%clk 0:01:45]} 30... Rxe6 {[%clk
0:00:33.6]} 31. d5 {[%clk 0:01:45.6]} 31... Ree8 {[%clk 0:00:18]} 32. d6 {[%clk
0:01:42.8]} 32... Qd7 {[%clk 0:00:11.6]} 33. Qd4 {[%clk 0:01:41.1]} 33... Ne5
{[%clk 0:00:11.1]} 34. Bh5 {[%clk 0:01:25.1]} 34... Bc6 {[%clk 0:00:05.8]} 35.
Bxe8 {[%clk 0:01:18.5]} 35... Rxe8 {[%clk 0:00:05.9]} 36. Rg3 {[%clk 0:01:18.9]}
36... Rg8 {[%clk 0:00:05.3]} 37. Bxe5 {[%clk 0:01:17]} 1-0

[Event "Early-Titled-Tuesday-Blitz-October-24-2023"]
[Site "Chess.com"]
[Date "2023.10.24"]
[Round "1"]
[White "seopie"]
[Black "newyorkmouse"]
[Result "1-0"]
[WhiteElo "2905"]
[BlackElo "2493"]
[TimeControl "180+1"]
[EndTime "8:06:22 PDT"]
[Termination "seopie won by resignation"]

1. e4 {[%clk 0:02:58.9]} 1... g6 {[%clk 0:02:58.5]} 2. d4 {[%clk 0:02:58]} 2...
Bg7 {[%clk 0:02:59.1]} 3. c4 {[%clk 0:02:58]} 3... d6 {[%clk 0:02:58]} 4. Nc3
{[%clk 0:02:58]} 4... Nf6 {[%clk 0:02:56.6]} 5. h3 {[%clk 0:02:57.2]} 5... O-O
{[%clk 0:02:57]} 6. Be3 {[%clk 0:02:56.6]} 6... e5 {[%clk 0:02:49.5]} 7. d5
{[%clk 0:02:56.5]} 7... a5 {[%clk 0:02:48.4]} 8. g4 {[%clk 0:02:55.3]} 8... Na6
{[%clk 0:02:47.8]} 9. Nge2 {[%clk 0:02:55.4]} 9... c6 {[%clk 0:02:35.9]} 10. Ng3
{[%clk 0:02:55.3]} 10... cxd5 {[%clk 0:02:34.2]} 11. cxd5 {[%clk 0:02:55.3]}
11... Nc5 {[%clk 0:02:33.4]} 12. Be2 {[%clk 0:02:49.3]} 12... Bd7 {[%clk
0:02:28.4]} 13. g5 {[%clk 0:02:45.1]} 13... Ne8 {[%clk 0:02:27.1]} 14. h4 {[%clk
0:02:46]} 14... Rb8 {[%clk 0:02:26.9]} 15. h5 {[%clk 0:02:42.8]} 15... b5 {[%clk
0:02:26.1]} 16. Nb1 {[%clk 0:02:30.8]} 16... f5 {[%clk 0:02:16.6]} 17. gxf6
{[%clk 0:02:29.4]} 17... Qxf6 {[%clk 0:02:13.2]} 18. Nd2 {[%clk 0:02:25]} 18...
Bh6 {[%clk 0:01:57.4]} 19. Bxc5 {[%clk 0:02:02.7]} 19... dxc5 {[%clk 0:01:55]}
20. Rh2 {[%clk 0:02:03.2]} 20... Nd6 {[%clk 0:01:47.7]} 21. hxg6 {[%clk
0:01:58.7]} 21... Qxg6 {[%clk 0:01:47.1]} 22. Qc2 {[%clk 0:01:58.2]} 22... Rxf2
{[%clk 0:01:19.5]} 23. Rxf2 {[%clk 0:01:57.2]} 23... Qxg3 {[%clk 0:01:18.2]} 24.
Nf1 {[%clk 0:01:52.2]} 24... Qg5 {[%clk 0:01:14.4]} 25. Qd3 {[%clk 0:01:37.7]}
25... c4 {[%clk 0:01:07.3]} 26. Qg3 {[%clk 0:01:33.7]} 26... Nxe4 {[%clk
0:01:06.5]} 27. Qxg5+ {[%clk 0:01:33.3]} 27... Bxg5 {[%clk 0:00:59.3]} 28. Rg2
{[%clk 0:01:30.9]} 28... Kf7 {[%clk 0:00:54.4]} 29. Bh5+ {[%clk 0:01:23.5]}
29... Ke7 {[%clk 0:00:53.4]} 30. Bf3 {[%clk 0:01:23.2]} 30... Bh4+ {[%clk
0:00:52.8]} 31. Ke2 {[%clk 0:01:21.6]} 31... Ng5 {[%clk 0:00:50.2]} 32. Bg4
{[%clk 0:01:21.7]} 32... Nh3 {[%clk 0:00:32.8]} 33. Bxh3 {[%clk 0:01:13.6]}
33... Bxh3 {[%clk 0:00:33.7]} 34. Rg7+ {[%clk 0:01:13.9]} 34... Kd6 {[%clk
0:00:26.2]} 35. Ne3 {[%clk 0:01:09.2]} 35... h5 {[%clk 0:00:12.1]} 36. Rh1
{[%clk 0:01:07.1]} 36... Bf6 {[%clk 0:00:09.8]} 37. Rg6 {[%clk 0:01:06.4]} 1-0

[Event "Early-Titled-Tuesday-Blitz-October-24-2023"]
[Site "Chess.com"]
[Date "2023.10.24"]
[Round "1"]
[White "DavidLana1987"]
[Black "PenguiinQueen"]
[Result "1-0"]
[WhiteElo "2573"]
[BlackElo "2210"]
[TimeControl "180+1"]
[EndTime "8:06:28 PDT"]
[Termination "DavidLana1987 won by checkmate"]

1. e4 {[%clk 0:03:00.9]} 1... e5 {[%clk 0:02:55.4]} 2. Nf3 {[%clk 0:03:00.7]}
2... Nc6 {[%clk 0:02:55.6]} 3. Bb5 {[%clk 0:03:01.1]} 3... a6 {[%clk 0:02:54.9]}
4. Bxc6 {[%clk 0:03:01.1]} 4... dxc6 {[%clk 0:02:55.8]} 5. O-O {[%clk
0:03:01.1]} 5... Bg4 {[%clk 0:02:44]} 6. h3 {[%clk 0:02:58.2]} 6... h5 {[%clk
0:02:43.6]} 7. d3 {[%clk 0:02:58.6]} 7... Qf6 {[%clk 0:02:42.4]} 8. Be3 {[%clk
0:02:58.5]} 8... Bxf3 {[%clk 0:02:26.7]} 9. Qxf3 {[%clk 0:02:56.6]} 9... Qxf3
{[%clk 0:02:26.7]} 10. gxf3 {[%clk 0:02:57.5]} 10... c5 {[%clk 0:02:20]} 11. f4
{[%clk 0:02:57.3]} 11... exf4 {[%clk 0:02:12.7]} 12. Bxf4 {[%clk 0:02:57.3]}
12... O-O-O {[%clk 0:02:12.9]} 13. Nc3 {[%clk 0:02:56.9]} 13... Bd6 {[%clk
0:02:11.7]} 14. Bxd6 {[%clk 0:02:56.1]} 14... cxd6 {[%clk 0:02:10.9]} 15. Nd5
{[%clk 0:02:53.8]} 15... Rh6 {[%clk 0:02:08.3]} 16. f4 {[%clk 0:02:51.6]} 16...
Nf6 {[%clk 0:02:02.6]} 17. Ne7+ {[%clk 0:02:51.6]} 17... Kd7 {[%clk 0:02:02.4]}
18. Nf5 {[%clk 0:02:52.5]} 18... Rg6+ {[%clk 0:02:01.8]} 19. Kh2 {[%clk
0:02:53]} 19... Ne8 {[%clk 0:01:57.9]} 20. Rg1 {[%clk 0:02:52.1]} 20... Rxg1
{[%clk 0:01:57.3]} 21. Rxg1 {[%clk 0:02:53]} 21... g6 {[%clk 0:01:57.6]} 22. Ne3
{[%clk 0:02:51.7]} 22... Nf6 {[%clk 0:01:47]} 23. f5 {[%clk 0:02:51.7]} 23...
Rg8 {[%clk 0:01:46.5]} 24. fxg6 {[%clk 0:02:51.1]} 24... fxg6 {[%clk 0:01:46.5]}
25. Rf1 {[%clk 0:02:51.2]} 25... Ke6 {[%clk 0:01:44.5]} 26. Kg3 {[%clk 0:02:39]}
26... b5 {[%clk 0:01:40.5]} 27. Kh4 {[%clk 0:02:35.7]} 27... g5+ {[%clk
0:01:40.3]} 28. Kg3 {[%clk 0:02:35.6]} 28... c4 {[%clk 0:01:37.8]} 29. Rf5
{[%clk 0:02:30.5]} 29... cxd3 {[%clk 0:01:32.2]} 30. cxd3 {[%clk 0:02:30.2]}
30... Rg6 {[%clk 0:01:27.8]} 31. Kf3 {[%clk 0:02:29.2]} 31... Nd7 {[%clk
0:01:26.3]} 32. Nd5 {[%clk 0:02:25.1]} 32... Ne5+ {[%clk 0:01:25.5]} 33. Ke3
{[%clk 0:02:25]} 33... Kd7 {[%clk 0:01:20.7]} 34. a3 {[%clk 0:02:19.4]} 34... h4
{[%clk 0:01:08]} 35. Nf6+ {[%clk 0:02:06.5]} 35... Ke6 {[%clk 0:01:05.2]} 36.
Nd5 {[%clk 0:02:04.9]} 36... Kd7 {[%clk 0:01:03]} 37. Ke2 {[%clk 0:02:02.1]}
37... g4 {[%clk 0:00:54.4]} 38. d4 {[%clk 0:01:55.6]} 38... Nc6 {[%clk
0:00:51.7]} 39. Ke3 {[%clk 0:01:44.8]} 39... gxh3 {[%clk 0:00:47.9]} 40. Rf7+
{[%clk 0:01:41.1]} 40... Ke8 {[%clk 0:00:45.5]} 41. Rh7 {[%clk 0:01:31.1]} 41...
Rg3+ {[%clk 0:00:43.8]} 42. Kf4 {[%clk 0:01:30.2]} 42... Nxd4 {[%clk 0:00:43.6]}
43. Rxh4 {[%clk 0:01:29.3]} 43... Ne2+ {[%clk 0:00:43.6]} 44. Kf5 {[%clk
0:01:28.9]} 44... Kf7 {[%clk 0:00:29.5]} 45. Rh7+ {[%clk 0:01:27.6]} 45... Kg8
{[%clk 0:00:29]} 46. Nf6+ {[%clk 0:01:27.7]} 46... Kf8 {[%clk 0:00:29.3]} 47.
Ke6 {[%clk 0:01:26]} 47... Nf4+ {[%clk 0:00:29]} 48. Kxd6 {[%clk 0:01:26.5]}
48... Ng6 {[%clk 0:00:28.5]} 49. e5 {[%clk 0:01:22.2]} 49... Re3 {[%clk
0:00:24]} 50. e6 {[%clk 0:01:19.8]} 50... Rd3+ {[%clk 0:00:20]} 51. Kc6 {[%clk
0:01:19.3]} 51... Re3 {[%clk 0:00:20.2]} 52. Rf7# {[%clk 0:01:18.7]} 1-0

[Event "Early-Titled-Tuesday-Blitz-October-24-2023"]
[Site "Chess.com"]
[Date "2023.10.24"]
[Round "1"]
[White "djokovic74"]
[Black "amanjazu"]
[Result "1-0"]
[WhiteElo "2692"]
[BlackElo "2374"]
[TimeControl "180+1"]
[EndTime "8:06:31 PDT"]
[Termination "djokovic74 won by checkmate"]

1. c4 {[%clk 0:02:59.8]} 1... e5 {[%clk 0:02:59.5]} 2. Nc3 {[%clk 0:02:59.7]}
2... Nc6 {[%clk 0:02:59.7]} 3. Nf3 {[%clk 0:03:00.1]} 3... Nf6 {[%clk
0:01:58.8]} 4. g3 {[%clk 0:02:58]} 4... Bc5 {[%clk 0:01:58.2]} 5. Bg2 {[%clk
0:02:55.9]} 5... O-O {[%clk 0:01:58.5]} 6. O-O {[%clk 0:02:55.2]} 6... d6 {[%clk
0:01:58.6]} 7. e3 {[%clk 0:02:54.4]} 7... Bg4 {[%clk 0:01:57.4]} 8. h3 {[%clk
0:02:54.5]} 8... Bh5 {[%clk 0:01:57.1]} 9. g4 {[%clk 0:02:55.1]} 9... Bg6 {[%clk
0:01:54.5]} 10. d4 {[%clk 0:02:55.7]} 10... Bb6 {[%clk 0:01:51.5]} 11. a4 {[%clk
0:02:55.6]} 11... a6 {[%clk 0:01:50.3]} 12. b3 {[%clk 0:02:44.3]} 12... Ba5
{[%clk 0:01:49]} 13. Bb2 {[%clk 0:02:44.1]} 13... exd4 {[%clk 0:01:46.4]} 14.
Nxd4 {[%clk 0:02:35.4]} 14... Bxc3 {[%clk 0:01:41.3]} 15. Bxc3 {[%clk
0:02:35.4]} 15... Be4 {[%clk 0:01:40.3]} 16. f3 {[%clk 0:02:34.2]} 16... Bg6
{[%clk 0:01:32.2]} 17. e4 {[%clk 0:02:27.6]} 17... Ne5 {[%clk 0:01:31]} 18. f4
{[%clk 0:02:17.2]} 18... Nxe4 {[%clk 0:01:22.5]} 19. Bxe4 {[%clk 0:02:15.7]}
19... Bxe4 {[%clk 0:01:23.4]} 20. fxe5 {[%clk 0:02:16.3]} 20... dxe5 {[%clk
0:01:23.8]} 21. Nf5 {[%clk 0:02:10]} 21... Qg5 {[%clk 0:01:22.8]} 22. Bd2 {[%clk
0:02:06.9]} 22... Qd8 {[%clk 0:01:15.7]} 23. Bb4 {[%clk 0:02:04.7]} 23... Bxf5
{[%clk 0:01:12.7]} 24. Bxf8 {[%clk 0:01:45]} 24... Bd3 {[%clk 0:01:12.7]} 25.
Bc5 {[%clk 0:01:32.4]} 25... e4 {[%clk 0:01:07.9]} 26. Be3 {[%clk 0:01:14.5]}
26... Qh4 {[%clk 0:01:07.5]} 27. Kg2 {[%clk 0:01:06.6]} 27... Rd8 {[%clk
0:01:06]} 28. Rf5 {[%clk 0:00:56.4]} 28... g6 {[%clk 0:01:02.2]} 29. Rd5 {[%clk
0:00:52.7]} 29... Rxd5 {[%clk 0:00:56.4]} 30. cxd5 {[%clk 0:00:52.7]} 30... Qd8
{[%clk 0:00:56.5]} 31. Qd2 {[%clk 0:00:40.9]} 31... Qxd5 {[%clk 0:00:56.1]} 32.
Qc3 {[%clk 0:00:41.4]} 32... Be2 {[%clk 0:00:44.9]} 33. Qd4 {[%clk 0:00:35.2]}
33... Bf3+ {[%clk 0:00:42.8]} 34. Kf2 {[%clk 0:00:34.6]} 34... Qxb3 {[%clk
0:00:42.2]} 35. Qd8+ {[%clk 0:00:34.6]} 35... Kg7 {[%clk 0:00:42.2]} 36. Bd4+
{[%clk 0:00:35.1]} 36... Kh6 {[%clk 0:00:42.5]} 37. Qh4# {[%clk 0:00:35.1]} 1-0

[Event "Early-Titled-Tuesday-Blitz-October-24-2023"]
[Site "Chess.com"]
[Date "2023.10.24"]
[Round "1"]
[White "Suleyman_Chess06"]
[Black "UmarovSabir"]
[Result "0-1"]
[WhiteElo "2591"]
[BlackElo "2312"]
[TimeControl "180+1"]
[EndTime "8:06:31 PDT"]
[Termination "UmarovSabir won by resignation"]

1. d4 {[%clk 0:03:00.9]} 1... g6 {[%clk 0:02:59.4]} 2. Nf3 {[%clk 0:03:00.2]}
2... Bg7 {[%clk 0:02:59.4]} 3. c4 {[%clk 0:03:00.8]} 3... c6 {[%clk 0:02:59.4]}
4. Nc3 {[%clk 0:03:01.2]} 4... d6 {[%clk 0:02:56.8]} 5. g3 {[%clk 0:03:01.7]}
5... f5 {[%clk 0:02:50]} 6. Bg2 {[%clk 0:03:01.8]} 6... Nf6 {[%clk 0:02:50.4]}
7. O-O {[%clk 0:02:58.1]} 7... O-O {[%clk 0:02:50.5]} 8. Re1 {[%clk 0:02:53.2]}
8... Nbd7 {[%clk 0:02:48.7]} 9. b3 {[%clk 0:02:43]} 9... d5 {[%clk 0:02:42.4]}
10. cxd5 {[%clk 0:02:41.8]} 10... cxd5 {[%clk 0:02:42.4]} 11. Ne5 {[%clk
0:02:39.5]} 11... e6 {[%clk 0:02:40.4]} 12. Ba3 {[%clk 0:02:38.5]} 12... Re8
{[%clk 0:02:39.3]} 13. f4 {[%clk 0:02:36.5]} 13... Qa5 {[%clk 0:02:27]} 14. Bb2
{[%clk 0:02:30.8]} 14... Ne4 {[%clk 0:02:17.7]} 15. Nxe4 {[%clk 0:02:30.3]}
15... fxe4 {[%clk 0:02:16.2]} 16. a3 {[%clk 0:02:23.7]} 16... Nxe5 {[%clk
0:02:10.2]} 17. dxe5 {[%clk 0:02:20.3]} 17... Bd7 {[%clk 0:02:08]} 18. Qd4
{[%clk 0:02:14.2]} 18... Rec8 {[%clk 0:02:05.2]} 19. Rac1 {[%clk 0:02:12.4]}
19... Bf8 {[%clk 0:02:03.2]} 20. b4 {[%clk 0:02:09.5]} 20... Qb6 {[%clk
0:01:56.6]} 21. Qxb6 {[%clk 0:01:55.5]} 21... axb6 {[%clk 0:01:57.5]} 22. Kf2
{[%clk 0:01:50.6]} 22... Bb5 {[%clk 0:01:47.9]} 23. Ke3 {[%clk 0:01:43.4]} 23...
Kf7 {[%clk 0:01:40.4]} 24. g4 {[%clk 0:01:38.7]} 24... Be7 {[%clk 0:01:22.6]}
25. Kd2 {[%clk 0:01:34.8]} 25... Bc4 {[%clk 0:01:15.1]} 26. Rf1 {[%clk
0:01:30.7]} 26... Ke8 {[%clk 0:00:59.3]} 27. Bh3 {[%clk 0:01:23.3]} 27... Kd7
{[%clk 0:00:52.8]} 28. e3 {[%clk 0:01:08.4]} 28... Bxf1 {[%clk 0:00:46.7]} 29.
Rxf1 {[%clk 0:01:05.4]} 29... Rc4 {[%clk 0:00:42.2]} 30. f5 {[%clk 0:01:05.6]}
30... Rac8 {[%clk 0:00:33.6]} 31. fxe6+ {[%clk 0:01:04.5]} 31... Ke8 {[%clk
0:00:30.6]} 32. Rc1 {[%clk 0:01:00]} 32... Rxc1 {[%clk 0:00:30.2]} 33. Bxc1
{[%clk 0:01:00.9]} 33... Bg5 {[%clk 0:00:28.9]} 34. Bb2 {[%clk 0:01:00.4]} 34...
Ke7 {[%clk 0:00:29]} 35. Bg2 {[%clk 0:00:58.7]} 35... Kxe6 {[%clk 0:00:28]} 36.
Bd4 {[%clk 0:00:55.1]} 36... Rc4 {[%clk 0:00:26.1]} 37. Bf1 {[%clk 0:00:52.5]}
37... Rxd4+ {[%clk 0:00:24.8]} 0-1

[Event "Early-Titled-Tuesday-Blitz-October-24-2023"]
[Site "Chess.com"]
[Date "2023.10.24"]
[Round "1"]
[White "DonJuanEGenaro"]
[Black "subham777"]
[Result "0-1"]
[WhiteElo "1785"]
[BlackElo "2526"]
[TimeControl "180+1"]
[EndTime "8:06:35 PDT"]
[Termination "subham777 won on time"]

1. d4 {[%clk 0:02:58.7]} 1... d5 {[%clk 0:02:56.6]} 2. Nf3 {[%clk 0:02:58.6]}
2... Nf6 {[%clk 0:02:56]} 3. c4 {[%clk 0:02:58.5]} 3... e6 {[%clk 0:02:56.2]} 4.
g3 {[%clk 0:02:55.7]} 4... Be7 {[%clk 0:02:56.1]} 5. Bg2 {[%clk 0:02:55.6]} 5...
O-O {[%clk 0:02:56.1]} 6. O-O {[%clk 0:02:55.5]} 6... dxc4 {[%clk 0:02:56.3]} 7.
Ne5 {[%clk 0:02:54.3]} 7... Nc6 {[%clk 0:02:54.5]} 8. Bxc6 {[%clk 0:02:47.1]}
8... bxc6 {[%clk 0:02:54]} 9. Nxc6 {[%clk 0:02:47]} 9... Qe8 {[%clk 0:02:54]}
10. Nxe7+ {[%clk 0:02:46.6]} 10... Qxe7 {[%clk 0:02:54.9]} 11. Nc3 {[%clk
0:02:45.2]} 11... c5 {[%clk 0:02:49.9]} 12. Bg5 {[%clk 0:02:20]} 12... Rd8
{[%clk 0:02:38.9]} 13. d5 {[%clk 0:01:41.9]} 13... Bb7 {[%clk 0:02:26.9]} 14. e4
{[%clk 0:01:37.5]} 14... h6 {[%clk 0:02:22.4]} 15. Bxf6 {[%clk 0:01:09.1]} 15...
Qxf6 {[%clk 0:02:23.3]} 16. Qd2 {[%clk 0:00:52.7]} 16... h5 {[%clk 0:01:58]} 17.
Rad1 {[%clk 0:00:47]} 17... h4 {[%clk 0:01:54.4]} 18. Qf4 {[%clk 0:00:42.2]}
18... Qxf4 {[%clk 0:01:52.5]} 19. gxf4 {[%clk 0:00:41.4]} 19... exd5 {[%clk
0:01:53.2]} 20. exd5 {[%clk 0:00:39]} 20... Rd7 {[%clk 0:01:49.4]} 21. Rfe1
{[%clk 0:00:38.7]} 21... Rad8 {[%clk 0:01:47.3]} 22. Re5 {[%clk 0:00:35.8]}
22... g6 {[%clk 0:01:45.3]} 23. f5 {[%clk 0:00:31.6]} 23... Kg7 {[%clk
0:01:41.3]} 24. fxg6 {[%clk 0:00:28.6]} 24... fxg6 {[%clk 0:01:42.2]} 25. f3
{[%clk 0:00:19.5]} 25... Rf7 {[%clk 0:01:39.4]} 26. Kf2 {[%clk 0:00:18.4]} 26...
Rdf8 {[%clk 0:01:38.7]} 27. Re3 {[%clk 0:00:18.2]} 27... g5 {[%clk 0:01:35.1]}
28. Ne4 {[%clk 0:00:17.9]} 28... Kg6 {[%clk 0:01:12.3]} 29. Rg1 {[%clk
0:00:17.4]} 29... Rf5 {[%clk 0:01:00.4]} 30. Nd6 {[%clk 0:00:15.3]} 30... Bxd5
{[%clk 0:01:00.4]} 31. Nxf5 {[%clk 0:00:14.9]} 31... Rxf5 {[%clk 0:01:01.2]} 32.
Rge1 {[%clk 0:00:05]} 32... g4 {[%clk 0:00:55.9]} 33. Rd1 {[%clk 0:00:03.4]}
33... Bxf3 {[%clk 0:00:54.4]} 34. Rd6+ {[%clk 0:00:01.6]} 34... Kg5 {[%clk
0:00:54.6]} 0-1